{"text_format":"1","workbook":"xlsx","n_sheets":2,"sheets":["Investmentanteile","__Goal_Metadata"],"not_rendered":{"charts":0,"images":6,"macros":0,"external_links":0,"defined_names":3,"comments":1,"pivot_tables":0},"unopened":[],"bounds":{"document_bytes":16777216,"sheet_cells":100000,"rows_first":2000,"rows_last":500,"rows_between":2000,"halvings":0,"cell_chars":16384,"cell_head_chars":4096},"cells_cut":0,"cells_raw":0,"read":"whole","date_system":"1900"}

{"sheet":"Investmentanteile","index":0,"n_rows":169,"n_cols":35,"rows_kept":169,"cut":false,"hidden":false,"merged":[[37,7,37,10],[39,7,39,10],[41,7,41,10],[15,6,15,10],[35,8,35,10],[19,4,19,10],[20,4,20,10],[21,4,21,10],[22,4,22,10],[23,4,23,10]]}
["V=7.4C;ID=20000;Typ=INVES"]
[]
[]
[]
[]
[]
[]
[]
[]
[null,null,null,"Private Finanz- und Vermögensplanung"]
[null,null,null,"Investmentanteile"]
[]
[]
[null,null,null,"Allgemeine Angaben"]
[]
[null,null,null,null,"Erstellt von:"]
[]
[null,null,null,null,"Anmerkungen, z.B. depotführende Bank"]
[]
[]
[]
[]
[]
[]
[]
[]
[null,null,null,{"$f":"\"Angaben zu \" &D11","v":"Angaben zu Investmentanteile"}]
[]
[]
[]
[]
[]
[]
[]
[]
[null,null,null,null,{"$f":"\"Art der \"&D11","v":"Art der Investmentanteile"}]
[]
[null,null,null,null,"Bezeichnung"]
[]
[null,null,null,null,"Kapitalanlagegesellschaft"]
[]
[null,null,null,null,"Wertpapiernummer (ISIN)"]
[]
[null,null,null,null,"Erwerbsdatum - erstmalig (tt.mm.jjjj)"]
[]
[null,null,null,null,"Ausgabepreis",null,"Zahlungsturnus",null,null,null,"€"]
[]
[null,null,null,null,"Rücknahmepreis - laufend",null,"Zahlungsturnus",null,null,null,"€"]
[]
[null,null,null,null,"Zugeflossene (Netto-)Ausschüttung",null,"Zahlungsturnus",null,null,null,"€"]
[]
[null,null,null,null,"Laufende Nebenkosten",null,"Zahlungsturnus",null,null,null,"€"]
[]
[]
[null,null,null,null,"Rücknahmewert zum 31.12.(jjjj)",null,"Jahr",null,null,null,"€"]
[]
[null,null,null,null,"Stückzahl am 31.12.(jjjj)",null,"Jahr"]
[]
[]
[]
[]
[]
[]
[]
[]
[]
[]
[]
[]
[]
[]
[]
[]
[]
[]
[]
[]
[]
[]
[]
[]
[]
[]
[]
[]
[]
[]
[]
[]
[]
[]
[]
[]
[]
[]
[]
[]
[]
[]
[null,null,null,null,null,null,null,null,null,null,null,null,null,null,null,null,null,null,null,null,null,null,null,null,null,null,"Aktienfonds","AKTIE",null,null,null,null,null,"monatlich","MONAT"]
[null,null,null,null,null,null,null,null,null,null,null,null,null,null,null,null,null,null,null,null,null,null,null,null,null,null,"Dachfonds","DACH",null,null,null,null,null,"vierteljährlich","VJAHR"]
[null,null,null,null,null,null,null,null,null,null,null,null,null,null,null,null,null,null,null,null,null,null,null,null,null,null,"Geldmarktfonds","GELD",null,null,null,null,null,"halbjährlich","HJAHR"]
[null,null,null,null,null,null,null,null,null,null,null,null,null,null,null,null,null,null,null,null,null,null,null,null,null,null,"Gemischter Fonds","MISCH",null,null,null,null,null,"jährlich","JAHR"]
[null,null,null,null,null,null,null,null,null,null,null,null,null,null,null,null,null,null,null,null,null,null,null,null,null,null,"Offener Immobilienfonds","IMMO",null,null,null,null,null,"einmalig","EINM"]
[null,null,null,null,null,null,null,null,null,null,null,null,null,null,null,null,null,null,null,null,null,null,null,null,null,null,"Rentenfonds","RENTE"]
[null,null,null,null,null,null,null,null,null,null,null,null,null,null,null,null,null,null,null,null,null,null,null,null,null,null,"Sonstiger Investmentfonds","SONIF"]
[]
[]
[]
[]
[]
[]
[]
[]
[]
[null,null,null,null,null,null,null,null,null,null,null,null,null,null,null,null,null,null,null,null,null,null,null,null,null,null,"Notiz erstellen:"]
[null,null,null,null,null,null,null,null,null,null,null,null,null,null,null,null,null,null,null,null,null,null,null,null,null,null,"Beschriftung","Wert"]
[null,null,null,null,null,null,null,null,null,null,null,null,null,null,null,null,null,null,null,null,null,null,null,null,null,null,{"$f":"IF(G16=\"\",\"\",E16)","v":""},{"$f":"IF(G16=\"\",\"\",G16)","v":""}]
[null,null,null,null,null,null,null,null,null,null,null,null,null,null,null,null,null,null,null,null,null,null,null,null,null,null,{"$f":"IF(AND(E20=\"\",E21=\"\",E22=\"\",E23=\"\",E24=\"\"),\"\",\"Anmerkungen:\")","v":""},{"$f":"TRIM(E20&\" \"&E21&\" \"&E22&\" \"&E23&\" \"&E24)","v":""}]
[null,null,null,null,null,null,null,null,null,null,null,null,null,null,null,null,null,null,null,null,null,null,null,null,null,null,{"$f":"IF(OR(AA118=\"\",AA119=\"\"),\"\",\"; \")","v":""}]
[null,null,null,null,null,null,null,null,null,null,null,null,null,null,null,null,null,null,null,null,null,null,null,null,null,null,"Notiz:"]
[null,null,null,null,null,null,null,null,null,null,null,null,null,null,null,null,null,null,null,null,null,null,null,null,null,null,{"$f":"AA118&\" \"&AB118&AA120&AA119&\" \"&AB119","v":"  "}]
[]
[]
[]
[]
[]
[]
[]
[]
[]
[]
[]
[]
[]
[]
[]
[]
[]
[]
[]
[]
[]
[]
[]
[]
[]
[null,null,null,null,null,null,null,null,null,null,null,null,null,null,null,null,null,null,null,null,null,null,null,null,null,null,"DB-Infofeld","Wert","Gültigkeit"]
[]
[null,null,null,null,null,null,null,null,null,null,null,null,null,null,null,null,null,null,null,null,null,null,null,null,null,"AA 150","artfonds","AKTIE","Listeneintrag","Typ Text"]
[null,null,null,null,null,null,null,null,null,null,null,null,null,null,null,null,null,null,null,null,null,null,null,null,null,null,"bez",{"$f":"TEXT(H38,\"standard\")","v":"0"},"0-50","Typ Text"]
[null,null,null,null,null,null,null,null,null,null,null,null,null,null,null,null,null,null,null,null,null,null,null,null,null,null,"betriebsname",{"$f":"TEXT(H40,\"standard\")","v":"0"},"0-50","Typ Text"]
[null,null,null,null,null,null,null,null,null,null,null,null,null,null,null,null,null,null,null,null,null,null,null,null,null,null,"rechtnr",{"$f":"TEXT(H42,\"standard\")","v":"0"},"0-20","Typ Text"]
[null,null,null,null,null,null,null,null,null,null,null,null,null,null,null,null,null,null,null,null,null,null,null,null,null,null,"vom",{"$f":"J44","v":"00:00:00"},">=1900","Datum-Format"]
[null,null,null,null,null,null,null,null,null,null,null,null,null,null,null,null,null,null,null,null,null,null,null,null,null,null,"monat",{"$f":"MONTH(J44)","v":1},"mm.jjjj"]
[null,null,null,null,null,null,null,null,null,null,null,null,null,null,null,null,null,null,null,null,null,null,null,null,null,null,"jahr",{"$f":"YEAR(J44)","v":1900},"mm.jjjj"]
[null,null,null,null,null,null,null,null,null,null,null,null,null,null,null,null,null,null,null,null,null,null,null,null,null,null,"sparbetrag",{"$f":"J46","v":0},"Dez >=0"]
[null,null,null,null,null,null,null,null,null,null,null,null,null,null,null,null,null,null,null,null,null,null,null,null,null,null,"_TurnusSparbetrag","MONAT","Listeneintrag","Typ Text"]
[null,null,null,null,null,null,null,null,null,null,null,null,null,null,null,null,null,null,null,null,null,null,null,null,null,null,"tilgung",{"$f":"J48","v":0},"Dez >=0"]
[null,null,null,null,null,null,null,null,null,null,null,null,null,null,null,null,null,null,null,null,null,null,null,null,null,null,"_TurnusTilgung","MONAT","Listeneintrag","Typ Text"]
[null,null,null,null,null,null,null,null,null,null,null,null,null,null,null,null,null,null,null,null,null,null,null,null,null,null,"einnahmen",{"$f":"J50","v":0},"Dez >=0"]
[null,null,null,null,null,null,null,null,null,null,null,null,null,null,null,null,null,null,null,null,null,null,null,null,null,null,"_TurnusEinnahmen","MONAT","Listeneintrag","Typ Text"]
[null,null,null,null,null,null,null,null,null,null,null,null,null,null,null,null,null,null,null,null,null,null,null,null,null,null,"ausgaben",{"$f":"J52","v":0},"Dez >=0"]
[null,null,null,null,null,null,null,null,null,null,null,null,null,null,null,null,null,null,null,null,null,null,null,null,null,null,"_TurnusAusgaben","MONAT","Listeneintrag","Typ Text"]
[null,null,null,null,null,null,null,null,null,null,null,null,null,null,null,null,null,null,null,null,null,null,null,null,null,null,"histdatum",{"$f":"DATE(H55,12,31)","v":"1900-12-31"},4,"Datum"]
[null,null,null,null,null,null,null,null,null,null,null,null,null,null,null,null,null,null,null,null,null,null,null,null,null,null,"verkwert",{"$f":"J55","v":0},"Dez >=0"]
[null,null,null,null,null,null,null,null,null,null,null,null,null,null,null,null,null,null,null,null,null,null,null,null,null,null,"histdatum",{"$f":"DATE(H57,12,31)","v":"1900-12-31"},4,"Datum"]
[null,null,null,null,null,null,null,null,null,null,null,null,null,null,null,null,null,null,null,null,null,null,null,null,null,null,"stueck",{"$f":"J57","v":0},"Dez>=0"]
[null,null,null,null,null,null,null,null,null,null,null,null,null,null,null,null,null,null,null,null,null,null,null,null,null,null,"notiz",{"$f":"AA122","v":"  "}]

{"sheet":"__Goal_Metadata","index":1,"n_rows":2,"n_cols":2,"rows_kept":2,"cut":false,"hidden":true,"merged":[]}
["_KAW999934","J"]
["_KAW999929","916c6401-d85c-46c0-85c9-7b0494bdb8f9"]